[Event "EWIRCC 2019"]
[Site "Monte-Carlo"]
[Date "2019.12.01"]
[Round "11.1"]
[White "Paehtz, Elisabeth"]
[Black "Kosteniuk, Alexandra"]
[Result "1/2-1/2"]
[ECO "D02"]
[WhiteElo "2484"]
[BlackElo "2483"]
[Annotator "ChessBase"]
[PlyCount "77"]
[EventDate "2019.11.28"]
[EventType "swiss"]
[EventCountry "MNC"]
[SourceTitle "playchess.com"]
[Source "ChessBase"]
[SourceQuality "1"]
[TimeControl "5400+30"]

1. d4 {[%emt 1:15:11]} Nf6 {[%emt 1:15:11]} 2. Bf4 {[%emt 0:00:21]} d5 {[%emt 0:00:23]} 3. e3 {[%emt 0:00:21]} c5 {[%emt 0:00:23]} 4. Nf3 {[%emt 0:00:28]} Nc6 {[%emt 0:00:30]} 5. Nbd2 {[%emt 0:00:22]} Bg4 {[%emt 0:01:15]} 6. c3 {[%emt 0:00:24]} e6 {[%emt 0:00:21]} 7. Qa4 {[%emt 0:00:34]} Nd7 {[%emt 0:01:09]} 8. Qb3 {[%emt 0:02:47]} Qb6 {[%emt 0:01:19]} 9. Qxb6 {[%emt 0:00:24]} Nxb6 {[%emt 0:00:31]} 10. Bb5 {[%emt 0:00:36]} f6 {[%emt 0:01:09]} 11. h3 {[%emt 0:01:09]} Bh5 {[%emt 0:00:28]} 12. dxc5 {[%emt 0:01:30]} Bxc5 {[%emt 0:00:24]} 13. Nb3 {[%emt 0:00:34]} Nd7 {[%emt 0:01:15]} 14. Nfd4 {[%emt 0:01:26]} Bxd4 {[%emt 0:02:34]} 15. exd4 {[%emt 0:02:46]} Kf7 {[%emt 0:02:26]} 16. Kd2 {[%emt 0:00:46]} a6 {[%emt 0:00:41]} 17. Bd3 {[%emt 0:01:27]} e5 {[%emt 0:00:50]} 18. Bh2 {[%emt 0:01:07]} e4 {[%emt 0:01:35]} 19. Bc2 {[%emt 0:00:35]} g5 {[%emt 0:00:29]} 20. Rhf1 {[%emt 0:02:02]} Bg6 {[%emt 0:00:41]} 21. f3 {[%emt 0:00:38]} exf3 {[%emt 0:00:58]} 22. Rxf3 {[%emt 0:00:39]} Bxc2 {[%emt 0:00:24]} 23. Kxc2 {[%emt 0:00:21]} Rhe8 {[%emt 0:00:24]} 24. Kd3 {[%emt 0:01:22]} Re6 {[%emt 0:00:42]} 25. Raf1 {[%emt 0:00:22]} Kg6 {[%emt 0:00:34]} 26. Nc1 {[%emt 0:00:42]} Rae8 {[%emt 0:00:32]} 27. R3f2 {[%emt 0:00:31]} Re1 {[%emt 0:01:31]} 28. Rxe1 {[%emt 0:00:38]} Rxe1 {[%emt 0:00:21]} 29. Kd2 {[%emt 0:00:21]} Re4 {[%emt 0:00:34]} 30. Nd3 {[%emt 0:00:30]} f5 {[%emt 0:00:29]} 31. Bc7 {[%emt 0:01:11]} h5 {[%emt 0:00:34]} 32. Re2 {[%emt 0:00:36]} h4 {[%emt 0:02:04]} 33. Nf2 {[%emt 0:00:27]} Rxe2+ {[%emt 0:00:22]} 34. Kxe2 {[%emt 0:00:21]} Nf6 {[%emt 0:00:24]} 35. Nd3 {[%emt 0:00:31]} Ne4 {[%emt 0:00:38]} 36. Kf3 {[%emt 0:00:34]} Nd2+ {[%emt 0:00:23]} 37. Ke2 {[%emt 0:00:21]} Ne4 {[%emt 0:00:21]} 38. Kf3 {[%emt 0:00:21]} Nd2+ {[%emt 0:00:23]} 39. Ke2 {[%emt 0:00:22]} 1/2-1/2

[Event "EWIRCC 2019"]
[Site "Monte-Carlo"]
[Date "2019.12.01"]
[Round "11.2"]
[White "Girya, Olga"]
[Black "Zhukova, Natalia"]
[Result "1-0"]
[ECO "A58"]
[WhiteElo "2476"]
[BlackElo "2323"]
[Annotator "ChessBase"]
[PlyCount "73"]
[EventDate "2019.11.28"]
[EventType "swiss"]
[EventCountry "MNC"]
[SourceTitle "playchess.com"]
[Source "ChessBase"]
[SourceQuality "1"]
[TimeControl "5400+30"]

1. d4 {[%emt 1:15:12]} Nf6 {[%emt 1:15:11]} 2. c4 {[%emt 0:00:21]} c5 {[%emt 0:00:50]} 3. d5 {[%emt 0:00:25]} b5 {[%emt 0:00:22]} 4. cxb5 {[%emt 0:00:39]} a6 {[%emt 0:00:21]} 5. bxa6 {[%emt 0:00:22]} e6 {[%emt 0:00:45]} 6. Nc3 {[%emt 0:00:21]} exd5 {[%emt 0:00:21]} 7. Nxd5 {[%emt 0:00:22]} Be7 {[%emt 0:00:22]} 8. Nh3 {[%emt 0:00:43]} Nxd5 {[%emt 0:01:17]} 9. Qxd5 {[%emt 0:00:21]} Rxa6 {[%emt 0:00:22]} 10. Nf4 {[%emt 0:03:59]} Rd6 {[%emt 0:04:09]} 11. Qc4 {[%emt 0:01:01]} Ba6 {[%emt 0:03:24]} 12. Qc3 {[%emt 0:01:52]} c4 {[%emt 0:03:15]} 13. Nh5 {[%emt 0:02:42]} Rg8 {[%emt 0:02:53]} 14. Bd2 {[%emt 0:00:55]} Nc6 {[%emt 0:00:54]} 15. O-O-O {[%emt 0:03:52]} g6 {[%emt 0:01:29]} 16. Ng3 {[%emt 0:00:23]} Re6 {[%emt 0:01:52]} 17. e3 {[%emt 0:01:35]} d5 {[%emt 0:00:31]} 18. Kb1 {[%emt 0:00:42]} f5 {[%emt 0:00:24]} 19. Be2 {[%emt 0:00:46]} Kf7 {[%emt 0:00:21]} 20. Bc1 {[%emt 0:00:57]} Qd6 {[%emt 0:00:43]} 21. Bf3 {[%emt 0:01:03]} Nb4 {[%emt 0:00:24]} 22. Ne2 {[%emt 0:00:40]} Nd3 {[%emt 0:00:30]} 23. Nf4 {[%emt 0:01:15]} Bf6 {[%emt 0:00:24]} 24. Qa5 {[%emt 0:00:46]} Rb8 {[%emt 0:00:43]} 25. Nxd3 {[%emt 0:00:35]} Rb5 {[%emt 0:00:32]} 26. Qa4 {[%emt 0:00:47]} cxd3 {[%emt 0:00:21]} 27. Rxd3 {[%emt 0:00:36]} Rxb2+ {[%emt 0:00:24]} 28. Bxb2 {[%emt 0:00:26]} Bxd3+ {[%emt 0:00:20]} 29. Ka1 {[%emt 0:00:33]} Bxb2+ {[%emt 0:00:42]} 30. Kxb2 {[%emt 0:00:21]} Qc5 {[%emt 0:00:32]} 31. Qd4 {[%emt 0:00:35]} Qb5+ {[%emt 0:00:34]} 32. Ka1 {[%emt 0:00:23]} Bc4 {[%emt 0:00:28]} 33. Rb1 {[%emt 0:00:38]} Qa6 {[%emt 0:00:30]} 34. Rb2 {[%emt 0:00:32]} Qa8 {[%emt 0:00:29]} 35. Qxc4 {[%emt 0:00:33]} dxc4 {[%emt 0:00:40]} 36. Bxa8 {[%emt 0:00:21]} f4 {[%emt 0:00:27]} 37. Bd5 {[%emt 0:00:21]} 1-0

[Event "EWIRCC 2019"]
[Site "Monte-Carlo"]
[Date "2019.12.01"]
[Round "11.3"]
[White "Muzychuk, Anna"]
[Black "Batsiashvili, Nino"]
[Result "0-1"]
[ECO "C78"]
[WhiteElo "2543"]
[BlackElo "2422"]
[Annotator "ChessBase"]
[PlyCount "96"]
[EventDate "2019.11.28"]
[EventType "swiss"]
[EventCountry "MNC"]
[SourceTitle "playchess.com"]
[Source "ChessBase"]
[SourceQuality "1"]
[TimeControl "5400+30"]

1. e4 {[%emt 1:15:11]} e5 {[%emt 1:15:11]} 2. Nf3 {[%emt 0:00:23]} Nc6 {[%emt 0:00:21]} 3. Bb5 {[%emt 0:00:21]} a6 {[%emt 0:00:20]} 4. Ba4 {[%emt 0:00:21]} Nf6 {[%emt 0:00:23]} 5. O-O {[%emt 0:00:22]} Bc5 {[%emt 0:00:25]} 6. c3 {[%emt 0:01:55]} O-O {[%emt 0:02:30]} 7. d4 {[%emt 0:00:29]} Ba7 {[%emt 0:00:41]} 8. Bg5 {[%emt 0:00:31]} h6 {[%emt 0:00:30]} 9. Bh4 {[%emt 0:00:23]} g5 {[%emt 0:01:27]} 10. Nxg5 {[%emt 0:01:03]} hxg5 {[%emt 0:03:36]} 11. Bxg5 {[%emt 0:00:22]} Qe7 {[%emt 0:05:05]} 12. Qf3 {[%emt 0:07:27]} Kg7 {[%emt 0:00:28]} 13. Qg3 {[%emt 0:01:50]} Nxe4 {[%emt 0:02:02]} 14. Bxe7+ {[%emt 0:00:40]} Nxg3 {[%emt 0:00:21]} 15. Bxf8+ {[%emt 0:00:22]} Kxf8 {[%emt 0:00:21]} 16. hxg3 {[%emt 0:00:46]} exd4 {[%emt 0:00:27]} 17. Rd1 {[%emt 0:00:24]} dxc3 {[%emt 0:00:35]} 18. Nxc3 {[%emt 0:00:24]} Ne5 {[%emt 0:00:33]} 19. Rac1 {[%emt 0:01:12]} c6 {[%emt 0:00:53]} 20. Kf1 {[%emt 0:01:04]} d5 {[%emt 0:00:25]} 21. Nxd5 {[%emt 0:03:00]} cxd5 {[%emt 0:01:23]} 22. Rxd5 {[%emt 0:00:24]} Nc6 {[%emt 0:00:20]} 23. Bxc6 {[%emt 0:00:39]} bxc6 {[%emt 0:00:26]} 24. Rd8+ {[%emt 0:00:29]} Ke7 {[%emt 0:00:22]} 25. Rh8 {[%emt 0:00:24]} Bb7 {[%emt 0:01:17]} 26. Re1+ {[%emt 0:00:32]} Kf6 {[%emt 0:00:49]} 27. Rh6+ {[%emt 0:01:18]} Kg7 {[%emt 0:00:28]} 28. Rd6 {[%emt 0:00:21]} a5 {[%emt 0:00:39]} 29. Kg1 {[%emt 0:00:32]} Bc5 {[%emt 0:01:25]} 30. Rd7 {[%emt 0:00:25]} Ba6 {[%emt 0:00:21]} 31. b3 {[%emt 0:00:38]} Bb4 {[%emt 0:00:37]} 32. Re4 {[%emt 0:00:29]} Rf8 {[%emt 0:00:30]} 33. Rf4 {[%emt 0:00:36]} Bc8 {[%emt 0:00:30]} 34. Ra7 {[%emt 0:00:24]} Be6 {[%emt 0:00:25]} 35. Re4 {[%emt 0:00:47]} Kf6 {[%emt 0:00:26]} 36. Rf4+ {[%emt 0:00:23]} Ke5 {[%emt 0:00:25]} 37. a3 {[%emt 0:00:26]} Bd2 {[%emt 0:00:24]} 38. Rf3 {[%emt 0:00:25]} Rd8 {[%emt 0:00:21]} 39. b4 {[%emt 0:00:27]} axb4 {[%emt 0:00:24]} 40. Ra5+ {[%emt 0:00:26]} Kd4 {[%emt 0:00:28]} 41. axb4 {[%emt 0:00:29]} Bxb4 {[%emt 0:00:27]} 42. Ra1 {[%emt 0:00:37]} Kc4 {[%emt 0:00:45]} 43. Rf4+ {[%emt 0:00:34]} Kb5 {[%emt 0:00:21]} 44. g4 {[%emt 0:00:25]} c5 {[%emt 0:00:26]} 45. g5 {[%emt 0:00:28]} Rd5 {[%emt 0:00:23]} 46. g6 {[%emt 0:00:51]} fxg6 {[%emt 0:02:04]} 47. Rf6 {[%emt 0:00:20]} Bf5 {[%emt 0:00:00]} 48. f3 {[%emt 0:00:20]} Bc3 {[%emt 0:00:00]} 0-1

[Event "EWIRCC 2019"]
[Site "Monte-Carlo"]
[Date "2019.12.01"]
[Round "11.4"]
[White "Stefanova, Antoaneta"]
[Black "Dornbusch, Tatiana"]
[Result "1-0"]
[ECO "A49"]
[WhiteElo "2481"]
[BlackElo "2269"]
[Annotator "ChessBase"]
[PlyCount "47"]
[EventDate "2019.11.28"]
[EventType "swiss"]
[EventCountry "MNC"]
[SourceTitle "playchess.com"]
[Source "ChessBase"]
[SourceQuality "1"]
[TimeControl "5400+30"]

1. Nf3 {[%emt 1:15:11]} Nf6 {[%emt 1:15:13]} 2. g3 {[%emt 0:00:21]} g6 {[%emt 0:00:22]} 3. Bg2 {[%emt 0:00:21]} Bg7 {[%emt 0:00:20]} 4. O-O {[%emt 0:00:22]} O-O {[%emt 0:00:26]} 5. d4 {[%emt 0:00:22]} c5 {[%emt 0:00:26]} 6. dxc5 {[%emt 0:00:29]} Na6 {[%emt 0:00:37]} 7. Be3 {[%emt 0:00:26]} Qc7 {[%emt 0:01:50]} 8. Nc3 {[%emt 0:00:54]} Nxc5 {[%emt 0:00:36]} 9. Nb5 {[%emt 0:00:23]} Qa5 {[%emt 0:02:36]} 10. Bxc5 {[%emt 0:01:54]} Qxb5 {[%emt 0:00:21]} 11. Bxe7 {[%emt 0:00:26]} Re8 {[%emt 0:00:21]} 12. Ba3 {[%emt 0:01:51]} Qxe2 {[%emt 0:00:30]} 13. Qxe2 {[%emt 0:00:31]} Rxe2 {[%emt 0:00:21]} 14. Nd4 {[%emt 0:00:23]} Rd2 {[%emt 0:00:57]} 15. c3 {[%emt 0:04:59]} d5 {[%emt 0:00:31]} 16. Rfe1 {[%emt 0:04:27]} Bf8 {[%emt 0:01:39]} 17. Bxf8 {[%emt 0:00:26]} Kxf8 {[%emt 0:00:21]} 18. Rab1 {[%emt 0:00:21]} Bd7 {[%emt 0:01:19]} 19. Bf1 {[%emt 0:01:22]} Ne4 {[%emt 0:02:12]} 20. Be2 {[%emt 0:01:20]} Nc5 {[%emt 0:02:03]} 21. Nf3 {[%emt 0:00:34]} Rc2 {[%emt 0:04:18]} 22. Bd1 {[%emt 0:00:25]} Bg4 {[%emt 0:02:09]} 23. Nd4 {[%emt 0:01:24]} Bxd1 {[%emt 0:01:45]} 24. Rexd1 {[%emt 0:00:23]} 1-0

[Event "EWIRCC 2019"]
[Site "Monte-Carlo"]
[Date "2019.12.01"]
[Round "11.5"]
[White "Gunina, Valentina"]
[Black "Osmak, Iulija"]
[Result "1-0"]
[ECO "C18"]
[WhiteElo "2509"]
[BlackElo "2401"]
[Annotator "ChessBase"]
[PlyCount "49"]
[EventDate "2019.11.28"]
[EventType "swiss"]
[EventCountry "MNC"]
[SourceTitle "playchess.com"]
[Source "ChessBase"]
[SourceQuality "1"]
[TimeControl "5400+30"]

1. e4 {[%emt 1:15:13]} e6 {[%emt 1:15:11]} 2. d4 {[%emt 0:00:40]} d5 {[%emt 0:00:21]} 3. Nc3 {[%emt 0:00:24]} Bb4 {[%emt 0:00:23]} 4. e5 {[%emt 0:01:03]} Ne7 {[%emt 0:00:22]} 5. a3 {[%emt 0:00:31]} Bxc3+ {[%emt 0:00:22]} 6. bxc3 {[%emt 0:00:21]} c5 {[%emt 0:00:22]} 7. Qg4 {[%emt 0:00:27]} Kf8 {[%emt 0:00:22]} 8. h4 {[%emt 0:02:20]} Qa5 {[%emt 0:00:49]} 9. Bd2 {[%emt 0:00:53]} Qa4 {[%emt 0:00:57]} 10. Rc1 {[%emt 0:04:02]} Nbc6 {[%emt 0:00:40]} 11. Nf3 {[%emt 0:00:21]} b6 {[%emt 0:02:49]} 12. Bd3 {[%emt 0:01:48]} Ba6 {[%emt 0:00:42]} 13. O-O {[%emt 0:00:34]} Bxd3 {[%emt 0:00:41]} 14. cxd3 {[%emt 0:00:22]} c4 {[%emt 0:01:04]} 15. h5 {[%emt 0:01:12]} h6 {[%emt 0:00:23]} 16. Nh4 {[%emt 0:01:14]} cxd3 {[%emt 0:04:42]} 17. f4 {[%emt 0:00:21]} Qc4 {[%emt 0:01:07]} 18. f5 {[%emt 0:00:44]} Nxe5 {[%emt 0:00:53]} 19. Qg3 {[%emt 0:00:35]} N5c6 {[%emt 0:00:59]} 20. fxe6 {[%emt 0:00:42]} f6 {[%emt 0:00:36]} 21. Ng6+ {[%emt 0:00:45]} Kg8 {[%emt 0:00:43]} 22. Rxf6 {[%emt 0:00:57]} Nxg6 {[%emt 0:01:00]} 23. Qxg6 {[%emt 0:00:32]} Nxd4 {[%emt 0:00:35]} 24. Qf7+ {[%emt 0:00:23]} Kh7 {[%emt 0:00:23]} 25. Rxh6# {[%emt 0:00:22]} 1-0

[Event "EWIRCC 2019"]
[Site "Monte-Carlo"]
[Date "2019.12.01"]
[Round "11.6"]
[White "Rogule, Laura"]
[Black "Cramling, Pia"]
[Result "0-1"]
[ECO "D30"]
[WhiteElo "2293"]
[BlackElo "2443"]
[Annotator "ChessBase"]
[PlyCount "49"]
[EventDate "2019.11.28"]
[EventType "swiss"]
[EventCountry "MNC"]
[SourceTitle "playchess.com"]
[Source "ChessBase"]
[SourceQuality "1"]
[TimeControl "5400+30"]

1. c4 {[%emt 1:15:11]} e6 {[%emt 1:15:13]} 2. Nf3 {[%emt 0:00:24]} d5 {[%emt 0:00:31]} 3. d4 {[%emt 0:00:30]} Nf6 {[%emt 0:00:23]} 4. g3 {[%emt 0:00:24]} dxc4 {[%emt 0:00:25]} 5. Qa4+ {[%emt 0:01:22]} c6 {[%emt 0:00:31]} 6. Qxc4 {[%emt 0:00:28]} b5 {[%emt 0:00:22]} 7. Qc2 {[%emt 0:00:30]} Bb7 {[%emt 0:00:22]} 8. Bg2 {[%emt 0:00:50]} Nbd7 {[%emt 0:00:29]} 9. Nc3 {[%emt 0:01:37]} Rc8 {[%emt 0:02:04]} 10. O-O {[%emt 0:02:20]} b4 {[%emt 0:02:56]} 11. Na4 {[%emt 0:00:58]} c5 {[%emt 0:00:29]} 12. dxc5 {[%emt 0:01:16]} Nxc5 {[%emt 0:00:29]} 13. Nxc5 {[%emt 0:02:59]} Bxc5 {[%emt 0:00:26]} 14. Qa4+ {[%emt 0:01:04]} Bc6 {[%emt 0:00:45]} 15. Qa6 {[%emt 0:00:26]} O-O {[%emt 0:00:54]} 16. Bg5 {[%emt 0:00:47]} Qb6 {[%emt 0:02:33]} 17. Qxb6 {[%emt 0:00:49]} axb6 {[%emt 0:00:24]} 18. Bxf6 {[%emt 0:01:28]} gxf6 {[%emt 0:00:22]} 19. Rfd1 {[%emt 0:02:12]} Rfd8 {[%emt 0:00:29]} 20. Nd2 {[%emt 0:01:08]} Bxg2 {[%emt 0:00:29]} 21. Kxg2 {[%emt 0:00:21]} Ra8 {[%emt 0:00:25]} 22. e3 {[%emt 0:01:26]} Ra7 {[%emt 0:01:54]} 23. Kf3 {[%emt 0:03:00]} Kg7 {[%emt 0:08:35]} 24. g4 {[%emt 0:00:30]} Rda8 {[%emt 0:00:30]} 25. Ne4 {[%emt 0:00:30]} 0-1

[Event "EWIRCC 2019"]
[Site "Monte-Carlo"]
[Date "2019.12.01"]
[Round "11.7"]
[White "Kashlinskaya, Alina"]
[Black "Arakhamia-Grant, Ketevan"]
[Result "1-0"]
[ECO "A56"]
[WhiteElo "2486"]
[BlackElo "2376"]
[Annotator "ChessBase"]
[PlyCount "87"]
[EventDate "2019.11.28"]
[EventType "swiss"]
[EventCountry "MNC"]
[SourceTitle "playchess.com"]
[Source "ChessBase"]
[SourceQuality "1"]
[TimeControl "5400+30"]

1. d4 {[%emt 1:15:11]} Nf6 {[%emt 1:15:11]} 2. c4 {[%emt 0:00:23]} c5 {[%emt 0:00:32]} 3. d5 {[%emt 0:00:22]} e5 {[%emt 0:00:31]} 4. Nc3 {[%emt 0:00:22]} d6 {[%emt 0:00:22]} 5. e4 {[%emt 0:00:23]} Nbd7 {[%emt 0:00:24]} 6. Bd3 {[%emt 0:00:57]} Be7 {[%emt 0:00:28]} 7. Nge2 {[%emt 0:00:23]} Nf8 {[%emt 0:00:28]} 8. O-O {[%emt 0:02:39]} Ng6 {[%emt 0:01:06]} 9. a3 {[%emt 0:00:22]} h5 {[%emt 0:01:12]} 10. b4 {[%emt 0:00:31]} b6 {[%emt 0:00:22]} 11. Bc2 {[%emt 0:01:06]} h4 {[%emt 0:00:39]} 12. Ba4+ {[%emt 0:00:22]} Kf8 {[%emt 0:02:13]} 13. Bc6 {[%emt 0:01:05]} Rb8 {[%emt 0:00:22]} 14. Rb1 {[%emt 0:00:21]} cxb4 {[%emt 0:03:24]} 15. axb4 {[%emt 0:00:24]} a6 {[%emt 0:00:21]} 16. f3 {[%emt 0:01:13]} Nh5 {[%emt 0:00:30]} 17. Be3 {[%emt 0:00:23]} Bg5 {[%emt 0:00:34]} 18. Bf2 {[%emt 0:00:21]} Nhf4 {[%emt 0:01:39]} 19. c5 {[%emt 0:00:33]} Rh5 {[%emt 0:03:32]} 20. cxb6 {[%emt 0:01:33]} Rxb6 {[%emt 0:00:50]} 21. Kh1 {[%emt 0:02:06]} Bf6 {[%emt 0:04:35]} 22. b5 {[%emt 0:01:18]} axb5 {[%emt 0:01:03]} 23. Bxb6 {[%emt 0:00:54]} Qxb6 {[%emt 0:00:22]} 24. Rxb5 {[%emt 0:00:22]} Qc7 {[%emt 0:00:59]} 25. Qa4 {[%emt 0:01:04]} Rg5 {[%emt 0:00:25]} 26. Qa5 {[%emt 0:01:41]} Bd8 {[%emt 0:00:32]} 27. Qxc7 {[%emt 0:00:47]} Bxc7 {[%emt 0:00:21]} 28. Nxf4 {[%emt 0:00:22]} Nxf4 {[%emt 0:00:23]} 29. Rb2 {[%emt 0:00:59]} Ke7 {[%emt 0:00:46]} 30. Ra1 {[%emt 0:01:36]} Nd3 {[%emt 0:00:22]} 31. Rd2 {[%emt 0:00:25]} Nc5 {[%emt 0:00:34]} 32. Ra7 {[%emt 0:00:23]} Kd8 {[%emt 0:00:22]} 33. Nb5 {[%emt 0:00:30]} Bb6 {[%emt 0:00:31]} 34. Rxf7 {[%emt 0:01:26]} Ba6 {[%emt 0:00:22]} 35. Nxd6 {[%emt 0:00:25]} h3 {[%emt 0:00:27]} 36. Nf5 {[%emt 0:00:52]} Bf1 {[%emt 0:00:53]} 37. gxh3 {[%emt 0:00:54]} Nxe4 {[%emt 0:00:28]} 38. Rd7+ {[%emt 0:00:37]} Ke8 {[%emt 0:00:39]} 39. Nxg7+ {[%emt 0:01:07]} Kf8 {[%emt 0:00:21]} 40. Ne6+ {[%emt 0:00:21]} Kg8 {[%emt 0:00:22]} 41. Nxg5 {[%emt 0:00:24]} Nxd2 {[%emt 0:00:25]} 42. d6 {[%emt 0:00:32]} Bc4 {[%emt 0:00:35]} 43. Rb7 {[%emt 0:00:42]} Be3 {[%emt 0:00:22]} 44. h4 {[%emt 0:00:33]} 1-0

[Event "EWIRCC 2019"]
[Site "Monte-Carlo"]
[Date "2019.12.01"]
[Round "11.8"]
[White "Muzychuk, Mariya"]
[Black "Chiburdanidze, Maia"]
[Result "1-0"]
[ECO "B19"]
[WhiteElo "2552"]
[BlackElo "2500"]
[Annotator "ChessBase"]
[PlyCount "109"]
[EventDate "2019.11.28"]
[EventType "swiss"]
[EventCountry "MNC"]
[SourceTitle "playchess.com"]
[Source "ChessBase"]
[SourceQuality "1"]
[TimeControl "5400+30"]

1. e4 {[%emt 1:15:11]} c6 {[%emt 1:15:12]} 2. d4 {[%emt 0:00:21]} d5 {[%emt 0:00:21]} 3. Nc3 {[%emt 0:00:21]} dxe4 {[%emt 0:00:27]} 4. Nxe4 {[%emt 0:00:21]} Bf5 {[%emt 0:00:38]} 5. Ng3 {[%emt 0:00:22]} Bg6 {[%emt 0:00:21]} 6. h4 {[%emt 0:00:22]} h6 {[%emt 0:00:25]} 7. Nf3 {[%emt 0:00:22]} Nd7 {[%emt 0:00:25]} 8. h5 {[%emt 0:00:21]} Bh7 {[%emt 0:00:21]} 9. Bd3 {[%emt 0:00:21]} Bxd3 {[%emt 0:00:23]} 10. Qxd3 {[%emt 0:00:21]} Ngf6 {[%emt 0:00:29]} 11. Bd2 {[%emt 0:00:23]} Qc7 {[%emt 0:00:54]} 12. O-O-O {[%emt 0:00:35]} e6 {[%emt 0:00:38]} 13. Ne4 {[%emt 0:00:44]} Nxe4 {[%emt 0:00:33]} 14. Qxe4 {[%emt 0:00:21]} Nf6 {[%emt 0:00:26]} 15. Qe2 {[%emt 0:00:22]} Bd6 {[%emt 0:00:50]} 16. Kb1 {[%emt 0:00:52]} c5 {[%emt 0:01:53]} 17. dxc5 {[%emt 0:01:51]} Bxc5 {[%emt 0:02:03]} 18. Bc3 {[%emt 0:01:24]} Rd8 {[%emt 0:03:39]} 19. Qb5+ {[%emt 0:07:52]} Ke7 {[%emt 0:01:21]} 20. Bb4 {[%emt 0:00:34]} b6 {[%emt 0:00:56]} 21. Nd4 {[%emt 0:00:32]} Rc8 {[%emt 0:01:10]} 22. Nb3 {[%emt 0:02:12]} Qc6 {[%emt 0:01:31]} 23. Qc4 {[%emt 0:01:25]} Rhe8 {[%emt 0:00:56]} 24. f3 {[%emt 0:01:14]} Nd5 {[%emt 0:00:38]} 25. Nxc5 {[%emt 0:01:06]} bxc5 {[%emt 0:00:23]} 26. Bc3 {[%emt 0:00:46]} Kf8 {[%emt 0:00:43]} 27. Rd2 {[%emt 0:00:29]} Rb8 {[%emt 0:01:03]} 28. Re1 {[%emt 0:01:08]} Red8 {[%emt 0:00:56]} 29. Red1 {[%emt 0:00:43]} Rd7 {[%emt 0:00:56]} 30. Bd4 {[%emt 0:00:38]} Rc8 {[%emt 0:00:36]} 31. Bf2 {[%emt 0:00:39]} a6 {[%emt 0:00:44]} 32. f4 {[%emt 0:00:32]} Qb5 {[%emt 0:00:27]} 33. Qxb5 {[%emt 0:00:33]} axb5 {[%emt 0:00:21]} 34. f5 {[%emt 0:00:24]} c4 {[%emt 0:00:26]} 35. fxe6 {[%emt 0:00:28]} fxe6 {[%emt 0:00:21]} 36. Bd4 {[%emt 0:00:16]} Rf7 {[%emt 0:00:47]} 37. c3 {[%emt 0:00:49]} Ke7 {[%emt 0:00:22]} 38. Re1 {[%emt 0:00:26]} Kd7 {[%emt 0:00:29]} 39. g3 {[%emt 0:00:33]} Re8 {[%emt 0:01:28]} 40. Kc2 {[%emt 0:00:21]} Ree7 {[%emt 0:00:33]} 41. Re4 {[%emt 0:00:29]} Rf5 {[%emt 0:00:28]} 42. g4 {[%emt 0:00:24]} Rf1 {[%emt 0:00:34]} 43. Bc5 {[%emt 0:01:15]} Ref7 {[%emt 0:00:29]} 44. a4 {[%emt 0:00:22]} R7f4 {[%emt 0:01:06]} 45. Rxf4 {[%emt 0:00:34]} Rxf4 {[%emt 0:00:21]} 46. axb5 {[%emt 0:00:25]} Rxg4 {[%emt 0:00:22]} 47. b3 {[%emt 0:00:29]} Kc7 {[%emt 0:00:53]} 48. bxc4 {[%emt 0:00:27]} Rxc4 {[%emt 0:00:26]} 49. Bd4 {[%emt 0:00:21]} Ra4 {[%emt 0:00:42]} 50. Kb3 {[%emt 0:00:32]} Ra8 {[%emt 0:00:25]} 51. Bxg7 {[%emt 0:00:23]} Rg8 {[%emt 0:00:33]} 52. Be5+ {[%emt 0:00:24]} Kb6 {[%emt 0:00:21]} 53. c4 {[%emt 0:00:22]} Rg5 {[%emt 0:00:36]} 54. Bd4+ {[%emt 0:00:39]} Kb7 {[%emt 0:00:26]} 55. cxd5 {[%emt 0:01:49]} 1-0

[Event "EWIRCC 2019"]
[Site "Monte-Carlo"]
[Date "2019.12.01"]
[Round "11.9"]
[White "Belenkaya, Dina"]
[Black "Gaponenko, Inna"]
[Result "0-1"]
[ECO "B09"]
[WhiteElo "2302"]
[BlackElo "2427"]
[Annotator "ChessBase"]
[PlyCount "92"]
[EventDate "2019.11.28"]
[EventType "swiss"]
[EventCountry "MNC"]
[SourceTitle "playchess.com"]
[Source "ChessBase"]
[SourceQuality "1"]
[TimeControl "5400+30"]

1. e4 {[%emt 1:15:11]} d6 {[%emt 1:15:11]} 2. d4 {[%emt 0:00:22]} Nf6 {[%emt 0:00:21]} 3. Nc3 {[%emt 0:00:21]} g6 {[%emt 0:00:21]} 4. f4 {[%emt 0:00:22]} Bg7 {[%emt 0:00:21]} 5. Bd3 {[%emt 0:00:22]} O-O {[%emt 0:00:22]} 6. Nf3 {[%emt 0:00:30]} Nc6 {[%emt 0:00:21]} 7. Qe2 {[%emt 0:02:03]} e5 {[%emt 0:00:50]} 8. fxe5 {[%emt 0:02:07]} dxe5 {[%emt 0:00:22]} 9. dxe5 {[%emt 0:01:35]} Ng4 {[%emt 0:00:50]} 10. Bg5 {[%emt 0:00:27]} Qd7 {[%emt 0:02:19]} 11. O-O-O {[%emt 0:00:29]} Nd4 {[%emt 0:02:05]} 12. Qf1 {[%emt 0:05:00]} Nxf3 {[%emt 0:11:22]} 13. gxf3 {[%emt 0:00:36]} Nxe5 {[%emt 0:00:22]} 14. Bb5 {[%emt 0:00:46]} Qh3 {[%emt 0:00:29]} 15. Be7 {[%emt 0:01:14]} Nxf3 {[%emt 0:01:14]} 16. Bxf8 {[%emt 0:00:54]} Bxf8 {[%emt 0:00:34]} 17. Qxh3 {[%emt 0:03:16]} Bxh3 {[%emt 0:00:21]} 18. Rd3 {[%emt 0:01:06]} Bh6+ {[%emt 0:00:51]} 19. Kb1 {[%emt 0:00:27]} Nd2+ {[%emt 0:00:31]} 20. Ka1 {[%emt 0:00:25]} Bg2 {[%emt 0:00:21]} 21. Rd1 {[%emt 0:00:51]} Nxe4 {[%emt 0:00:28]} 22. Rd8+ {[%emt 0:00:37]} Rxd8 {[%emt 0:00:20]} 23. Rxd8+ {[%emt 0:00:22]} Kg7 {[%emt 0:00:21]} 24. Nxe4 {[%emt 0:00:48]} Bxe4 {[%emt 0:00:22]} 25. Rd7 {[%emt 0:00:51]} Bf4 {[%emt 0:00:45]} 26. Rd4 {[%emt 0:00:42]} f5 {[%emt 0:00:21]} 27. Bd3 {[%emt 0:00:26]} Bxh2 {[%emt 0:00:28]} 28. Bxe4 {[%emt 0:00:28]} fxe4 {[%emt 0:00:21]} 29. Rxe4 {[%emt 0:00:22]} h5 {[%emt 0:00:26]} 30. c4 {[%emt 0:00:34]} Kf6 {[%emt 0:00:31]} 31. Kb1 {[%emt 0:00:25]} Kf5 {[%emt 0:00:23]} 32. Re7 {[%emt 0:00:24]} h4 {[%emt 0:00:21]} 33. Kc2 {[%emt 0:00:37]} h3 {[%emt 0:00:30]} 34. Rh7 {[%emt 0:00:53]} Kg4 {[%emt 0:00:25]} 35. Kd3 {[%emt 0:00:23]} Be5 {[%emt 0:01:07]} 36. Ke2 {[%emt 0:00:24]} Kg3 {[%emt 0:00:27]} 37. Rf7 {[%emt 0:01:33]} h2 {[%emt 0:00:41]} 38. Rf3+ {[%emt 0:00:22]} Kg2 {[%emt 0:00:23]} 39. Rf2+ {[%emt 0:00:21]} Kh3 {[%emt 0:00:24]} 40. Rf3+ {[%emt 0:00:22]} Bg3 {[%emt 0:00:24]} 41. Rf1 {[%emt 0:00:26]} Kg2 {[%emt 0:00:26]} 42. b4 {[%emt 0:00:57]} h1=Q {[%emt 0:00:24]} 43. Rxh1 {[%emt 0:00:21]} Kxh1 {[%emt 0:00:21]} 44. Kf3 {[%emt 0:00:22]} Be1 {[%emt 0:00:29]} 45. b5 {[%emt 0:00:21]} b6 {[%emt 0:00:41]} 46. a4 {[%emt 0:00:25]} Bd2 {[%emt 0:00:28]} 0-1